{"text_format":"1","workbook":"xlsx","n_sheets":3,"sheets":["ETAPE 1","ETAPE 2","RESULTAT"],"not_rendered":{"charts":0,"images":2,"macros":1,"external_links":0,"defined_names":3,"comments":0,"pivot_tables":0},"unopened":[],"bounds":{"document_bytes":16777216,"sheet_cells":100000,"rows_first":2000,"rows_last":500,"rows_between":2000,"halvings":0,"cell_chars":16384,"cell_head_chars":4096},"cells_cut":0,"cells_raw":0,"read":"whole","date_system":"1900"}

{"sheet":"ETAPE 1","index":0,"n_rows":34,"n_cols":6,"rows_kept":34,"cut":false,"hidden":false,"merged":[[3,1,3,5]]}
[]
[null,"Cet outil est la propriété de PME Optimum / tous droits réservés"]
[]
[null,"Première étape : L'objectif de cette première étape est de dresser un état des lieux de vos coûts. Merci de compléter les cases vertes du tableau ci-dessous en kilo euros . Les lignes non complétées représentent des gisements qui ne seront pas pris en compte pour le calcul estimatif du gain potentiel suite à la mise en place d'un projet d'excellence opérationnelle."]
[]
[null,null,"Chiffre d'affaires",null,{"$f":"+E7","v":0},"K€"]
[null,null,null,"Chiffre d'affaires",0,"K€"]
[null,null,"Ventes :",null,{"$f":"+E9+E10","v":0},"K€"]
[null,null,null,"Coûts de commercialisation",0,"K€"]
[null,null,null,"Coûts logistiques",0,"K€"]
[null,null,"Achats :",null,{"$f":"+E12+E13+E14+E15+E16","v":0},"K€"]
[null,null,null,"Matières premières",0,"K€"]
[null,null,null,"Ingrédients & packaging",0,"K€"]
[null,null,null,"Energie et fluides",0,"K€"]
[null,null,null,"Divers production dont sous traitance",0,"K€"]
[null,null,null,"Location",0,"K€"]
[null,null,"Production :",null,{"$f":"+E18+E19+E20+E21+E22","v":0},"K€"]
[null,null,null,"Main d'œuvre directe",0,"K€"]
[null,null,null,"Maintenance",0,"K€"]
[null,null,null,"Destruction / Recyclage",0,"K€"]
[null,null,null,"Qualité",0,"K€"]
[null,null,null,"Stockage extérieur",0,"K€"]
[null,null,"Administration et fonctions supports :",null,{"$f":"+E24+E25+E26","v":0},"K€"]
[null,null,null,"Main d'œuvre indirecte",0,"K€"]
[null,null,null,"R&D",0,"K€"]
[null,null,null,"Frais administratifs",0,"K€"]
[null,null,"Stocks :",null,{"$f":"+E28+E29+E30+E31+E32","v":0},"K€"]
[null,null,null,"Stock de matières premières",null,"K€"]
[null,null,null,"Stock d'ingrédients et d'emballages ",0,"K€"]
[null,null,null,"Stock de semi-finis",0,"K€"]
[null,null,null,"Stock de produits finis",0,"K€"]
[null,null,null,"Stock de maintenance",0,"K€"]
[null,null,"Niveau de cotisation AT/MP :",null,0,"K€"]
[null,null,null,null,{"$f":"IF(+(E23+E17+E11+E8)>E6,\"Attention, vos coûts sont supérieurs aux CA\",\"\")","v":""}]

{"sheet":"ETAPE 2","index":1,"n_rows":71,"n_cols":6,"rows_kept":71,"cut":false,"hidden":false,"merged":[[5,1,5,3],[3,1,3,3]]}
[]
[null,"Cet outil est la propriété de PME optimum / tous droits réservés"]
[]
[null,"Deuxième étape : L'objectif de cette deuxième étape est d'évaluer votre niveau en terme d'excellence opérationnelle. Merci de compléter le tableau ci-dessous. Les lignes non complétées représentent des gisements qui ne seront pas pris en compte pour le calcul estimatif du gain potentiel suite à la mise en place d'un projet d'excellence opérationnelle."]
[]
[null,"Mettez une croix dans les cases qui correspondent le plus à votre situation.\nAttention, une seule réponse par groupe de cases vertes"]
[]
[null,"VENTES"]
[]
[null,null,"Vous avez moins de 100 articles",null,null,{"$f":"IF(D10=\"\",0,1)","v":0}]
[null,null,"Vous avez entre 100 et 500 articles",null,null,{"$f":"IF(D11=\"\",0,1)","v":0}]
[null,null,"Vous avez entre 500 et 1000 articles",null,null,0]
[null,null,"Vous avez plus de 1000 articles",null,null,0]
[null,null,{"$f":"IF(+F14>1,\"Merci de cocher une seule case dans le groupe précédent\",\"\")","v":""},null,null,{"$f":"SUM(F10:F13)","v":0}]
[null,null,"Votre focus est l'augmentation du chiffre d'affaires",null,null,0]
[null,null,"Votre focus est l'augmentation de la marge commerciale",null,null,0]
[null,null,"Vous gérez vos articles en maximisant l'EBITDA généré par heure ",null,null,0]
[null,null,{"$f":"IF(+F18>1,\"Merci de cocher une seule case dans le groupe précédent\",\"\")","v":""},null,null,{"$f":"SUM(F15:F17)","v":0}]
[null,null,"Vous avez adapté votre niveau de service en fonction du client (classification A, B, C)",null,null,0]
[]
[null,null,"Vous avez défini des règles de gestion supply chain par article",null,null,0]
[]
[null,"ACHATS"]
[]
[null,null,"Vous suivez votre portefeuille achat par rapport au budget",null,null,0]
[null,null,"Vous suivez votre portefeuille achat par rapport à l'évolution du marché",null,null,0]
[null,null,"Vous suivez votre portefeuille achat par rapport à l'évolution du marché et en coût complet",null,null,0]
[null,null,{"$f":"IF(+F28>1,\"Merci de cocher une seule case dans le groupe précédent\",\"\")","v":""},null,null,{"$f":"SUM(F25:F27)","v":0}]
[null,null,"Vous êtes fidèles à vos fournisseurs",null,null,0]
[null,null,"Vous avez une politique de sourcing large",null,null,0]
[null,null,"Vous avez une politique de sourcing large et vous reformulez vos matières premières",null,null,0]
[null,null,{"$f":"IF(+F32>1,\"Merci de cocher une seule case dans le groupe précédent\",\"\")","v":""},null,null,{"$f":"SUM(F29:F31)","v":0}]
[null,null,"Vous avez au minimum trois fournisseurs par article",null,null,0]
[]
[null,null,"Vous avez segmenté votre portefeuille achat en cluster avec un leader par famille",null,null,0]
[]
[null,"ENERGIE et FLUIDES :"]
[]
[null,null,"Vous avez mené quelques actions de réduction des consommations",null,null,0]
[null,null,"Vous avez effectué un diagnostic et vous avez commencé un suivi en mettant en place des indicateurs",null,null,0]
[null,null,"Vous gérez les énergies et les fluides au niveau du poste de travail comme tous les intrants",null,null,0]
[null,null,"Vous avez une approche d'excellence opérationnelle et vous connaissez les consommations nominales par produit",null,null,0]
[null,null,{"$f":"IF(+F43>1,\"Merci de cocher une seule case dans le groupe précédent\",\"\")","v":""},null,null,{"$f":"SUM(F39:F42)","v":0}]
[null,null,"Vous avez travaillé sur la récupération d'énergies et / ou sur des énergies de substitution",null,null,0]
[]
[null,"PRODUCTION :"]
[]
[null,null,"Votre production fonctionne en mode contrôle qualité",null,null,0]
[null,null,"Vous avez défini les processus et le contrôle de la production s'effectue à chaque étape",null,null,0]
[null,null,"Vous avez mis en œuvre une approche 6 sigma ou équivalente",null,null,0]
[null,null,"Vous avez mis en place un système de management par la qualité totale",null,null,0]
[null,null,{"$f":"IF(+F52>1,\"Merci de cocher une seule case dans le groupe précédent\",\"\")","v":""},null,null,{"$f":"SUM(F48:F51)","v":0}]
[null,null,"Vous avez mis en œuvre le 5 S",null,null,0]
[]
[null,null,"Vous avez mis en œuvre des outils de résolution de problèmes (DMAIC) et le Kaisen",null,null,0]
[]
[null,null,"Vous avez mis en place les outils de Total Productive Maintenance",null,null,0]
[]
[null,null,"Vous suivez l'adhérence de la production au planning en fonction des standards / nominaux",null,null,0]
[]
[null,null,"Vous suivez la performance de vos ateliers en mesurant la variance de production",null,null,0]
[]
[null,"Administration et fonctions supports :"]
[]
[null,null,"Votre organisation est historique et a été mise en place en fonction des besoins",null,null,0]
[null,null,"Votre organisation permet un bon contrôle de l'ensemble des processus ",null,null,0]
[null,null,"Votre organisation est lean et vous permet d'anticiper votre croissance",null,null,0]
[null,null,{"$f":"IF(+F68>1,\"Merci de cocher une seule case dans le groupe précédent\",\"\")","v":""},null,null,{"$f":"SUM(F65:F67)","v":0}]
[]
[null,null,{"$f":"+IF(F71<7,\"ATTENTION, VOUS N'AVEZ PAS COCHE TOUS LES GROUPES DE CASES VERTES INDISPENSABLES A l'EVALUATION\",\"\")","v":"ATTENTION, VOUS N'AVEZ PAS COCHE TOUS LES GROUPES DE CASES VERTES INDISPENSABLES A l'EVALUATION"}]
[null,null,null,null,null,{"$f":"+F14+F18+F28+F32+F43+F52+F68","v":0}]

{"sheet":"RESULTAT","index":2,"n_rows":21,"n_cols":8,"rows_kept":21,"cut":false,"hidden":false,"merged":[[3,1,3,5],[5,1,5,5],[6,1,6,6]]}
[]
[null,"Cet outil est la propriété de PME optimum / tous droits réservés"]
[]
[null,"Résultats : Vous trouverez ci après une estimation des gains potentiels qui pourraient être réalisés suite à la mise en place d'un projet d'excellence opérationnelle dans votre PME. Cette estimation est issue de 30 ans d'expériences et d'observations. Chaque entreprise étant différente, seule une analyse détaillée de votre situation permettra d'affiner cette estimation et de définir un objectif réaliste de réduction de coûts."]
[]
[null,"Pour obtenir une évaluation des gains potentiels de votre société :\n\n1) Merci de vérifier que vous avez bien complété les deux premières pages de ce fichier \n2) Sauvegarder vore fichier sur votre PC\n3) Envoyer le fichier à : psutter@pmeoptimum.com"]
[null,"Si vous le souhaitez, un engagement de confidentialité peut vous être transmis"]
[]
[]
[null,null,"GAIN POTENTIEL CALCULE : ",null,"PME OPTIMUM vous transmettra une évaluation dans les plus brefs délais"]
[null,null,null,null,null,null,null,{"$f":"IF(AND('ETAPE 1'!$E$6>0,'ETAPE 1'!$E$6<=15000000)=FALSE,0,0.2)","v":0}]
[null,null,"Estimation basse :",null,"PME OPTIMUM vous transmettra une évaluation dans les plus brefs délais",null,null,{"$f":"IF(AND('ETAPE 1'!$E$6>15000000,'ETAPE 1'!$E$6<=30000000)=FALSE,0,0.18)","v":0}]
[null,null,"Estimation haute :",null,"PME OPTIMUM vous transmettra une évaluation dans les plus brefs délais",null,null,{"$f":"IF(AND('ETAPE 1'!$E$6>30000000,'ETAPE 1'!$E$6<=60000000)=FALSE,0,0.16)","v":0}]
[null,null,null,null,null,null,null,{"$f":"IF(AND('ETAPE 1'!$E$6>60000000,'ETAPE 1'!$E$6<=120000000)=FALSE,0,0.14)","v":0}]
[null,null,null,null,null,null,null,{"$f":"IF(AND('ETAPE 1'!$E$6>120000000,'ETAPE 1'!$E$6<=240000000)=FALSE,0,0.12)","v":0}]
[null,null,null,null,null,null,null,{"$f":"IF(AND('ETAPE 1'!$E$6>240000000)=FALSE,0,0.1)","v":0}]
[null,"POUR VOUS PERMETTRE DE REALISER CES REDUCTIONS DE COÛTS, MERCI DE PRENDRE CONTACT avec PME OPTIMUM :"]
[null,null,null,null,null,null,null,{"$f":"SUM(H11:H17)","v":0}]
[null,"Téléphone : 06 43 15 98 57"]
[null,"Couriel : psutter@pmeoptimum.com"]
[null,"Site Internet : pme-optimum.com"]